bitfinex/quotes_BTCUSD_20241216
["timestamp","ask_amount","ask_price","bid_price","bid_amount"]
[1734360200523,0.08114363,105110.0,105090.0,0.42871787]
[1734360200524,0.17543433,105110.0,105090.0,0.42871787]
[1734360200726,0.19843433,105110.0,105090.0,0.42871787]
[1734360201145,0.19843433,105110.0,105090.0,0.15016743]
[1734360201320,0.19843433,105110.0,105100.0,0.27841273]
[1734360201779,8.62e-05,105100.0,105090.0,0.42858016]
[1734360202891,8.62e-05,105100.0,105090.0,0.36518053]
[1734360203775,0.1173769,105100.0,105090.0,0.36518053]
[1734360204411,0.1673769,105100.0,105090.0,0.24727565]
[1734360205706,0.1673769,105100.0,105090.0,0.24732213]
[1734360206351,0.1673769,105100.0,105090.0,0.24731769]
[1734360206567,0.1173769,105100.0,105090.0,0.24731769]
[1734360206771,0.1673769,105100.0,105090.0,0.24731769]
[1734360210465,0.1173769,105100.0,105090.0,0.24734248]
[1734360210883,0.1673769,105100.0,105090.0,0.24734248]
[1734360211095,0.1173769,105100.0,105090.0,0.24734248]
[1734360212140,0.1673769,105100.0,105090.0,0.24734248]
[1734360212345,0.1173769,105100.0,105090.0,0.24734248]
[1734360212771,0.1173769,105100.0,105090.0,0.36521664]
[1734360213869,0.1173769,105100.0,105090.0,0.15826314]
[1734360214083,0.1173769,105100.0,105090.0,0.24747552]
[1734360214716,0.073,105090.0,105080.0,0.24747552]
[1734360214940,0.1672907,105090.0,105080.0,0.24747552]
[1734360216422,0.1172907,105090.0,105080.0,0.24747552]
[1734360217052,0.023,105080.0,105070.0,0.24747552]
[1734360217263,0.1172907,105080.0,105070.0,0.24747552]
[1734360217734,0.1172907,105080.0,105070.0,0.23656342]
[1734360218426,0.023,105070.0,105060.0,9.01485013]
[1734360218638,0.1172907,105070.0,105060.0,9.01485013]
[1734360219726,0.1172907,105070.0,105060.0,8.99529297]
[1734360219933,0.11848049,105070.0,105060.0,9.15945069]
[1734360220139,0.16848049,105070.0,105060.0,8.87584381]
[1734360220344,0.43415972,105070.0,105060.0,8.63168611]
[1734360220561,0.43296993,105070.0,105060.0,8.62768611]
[1734360220768,0.2673907,105070.0,105060.0,8.54368611]
[1734360220980,0.57626692,105070.0,105060.0,8.33616356]
[1734360221183,0.53296993,105070.0,105060.0,8.21059736]
[1734360221393,0.53296993,105070.0,105060.0,7.73565734]
[1734360221608,0.53296993,105070.0,105060.0,6.86919624]
[1734360221830,0.53296993,105070.0,105060.0,5.95380645]
[1734360222041,0.53296993,105070.0,105060.0,5.46195616]
[1734360222258,0.53296993,105070.0,105060.0,5.32827345]
[1734360222466,0.53296993,105070.0,105060.0,4.71085143]
[1734360222678,0.53296993,105070.0,105060.0,4.66461143]
[1734360222904,0.59003993,105070.0,105060.0,4.45748814]
[1734360223122,0.53296993,105070.0,105060.0,4.3718998]
[1734360223348,0.53296993,105070.0,105060.0,3.8941016]
[1734360223575,0.53296993,105070.0,105060.0,3.41916158]
[1734360224008,0.53296993,105070.0,105060.0,3.35667721]
[1734360224428,0.53296993,105070.0,105060.0,3.21419521]
[1734360224645,0.5604132,105070.0,105060.0,3.21419521]
[1734360224935,0.5604132,105070.0,105060.0,3.16619521]
[1734360225410,0.5604132,105070.0,105060.0,3.16636761]
[1734360225627,0.4603132,105070.0,105060.0,3.16636761]
[1734360225842,0.12173397,105070.0,105060.0,3.16636761]
[1734360226066,0.0942907,105070.0,105060.0,3.16636761]
[1734360227139,0.14548038,105070.0,105060.0,3.16636761]
[1734360227348,0.1442907,105070.0,105060.0,3.16636761]
[1734360227562,0.1442907,105070.0,105060.0,3.16146761]
[1734360228413,0.1672907,105070.0,105060.0,3.16146761]
[1734360228621,0.28286993,105070.0,105060.0,3.16146761]
[1734360228837,0.28286993,105070.0,105060.0,3.01890415]
[1734360228838,0.43286993,105070.0,105060.0,3.01890415]
[1734360229095,0.53300993,105070.0,105060.0,3.01890415]
[1734360230629,0.43290993,105070.0,105060.0,3.01890415]
[1734360230843,0.2673307,105070.0,105060.0,3.01890415]
[1734360231056,0.43290993,105070.0,105060.0,2.87634069]
[1734360233003,0.53300993,105070.0,105060.0,2.87634069]
[1734360233231,0.80903051,105070.0,105060.0,2.69875738]
[1734360233443,0.53300993,105070.0,105060.0,2.69875738]
[1734360234523,0.80903051,105070.0,105060.0,2.6499959]
[1734360234740,0.53300993,105070.0,105060.0,2.58387339]
[1734360234973,0.8711105,105070.0,105060.0,2.58387339]
[1734360235409,0.59508992,105070.0,105060.0,2.43106022]
[1734360235612,0.8711105,105070.0,105060.0,2.36903022]
[1734360235840,0.8711105,105070.0,105060.0,2.31748022]
[1734360236045,0.80903051,105070.0,105060.0,2.23248022]
[1734360236259,0.53300993,105070.0,105060.0,2.23248022]
[1734360236699,0.53309623,105070.0,105060.0,2.23248022]
[1734360236910,0.51009623,105070.0,105060.0,2.23248022]
[1734360238218,0.53309623,105070.0,105060.0,2.23248022]
[1734360241708,0.53309623,105070.0,105060.0,2.22748022]
[1734360242738,0.53309623,105070.0,105060.0,2.08491218]
[1734360245010,0.53309623,105070.0,105060.0,1.94234414]
[1734360246263,0.53338112,105070.0,105060.0,1.94234414]
[1734360246674,0.4781035,105070.0,105060.0,1.94234414]
[1734360248653,0.4781035,105070.0,105060.0,1.90434414]
[1734360249316,0.3051035,105070.0,105060.0,1.90434414]
[1734360249524,0.144417,105070.0,105060.0,1.90434414]
[1734360249750,0.094417,105070.0,105060.0,1.90434414]
[1734360250173,0.144417,105070.0,105060.0,1.90434414]
[1734360250388,0.094417,105070.0,105060.0,1.90434414]
[1734360250607,0.00029348,105100.0,105060.0,2.0690353]
[1734360250826,0.1442907,105090.0,105060.0,2.0690353]
[1734360251048,0.05,105080.0,105070.0,0.37055512]
[1734360251260,0.0942907,105080.0,105070.0,0.37055512]
[1734360251466,0.0942907,105080.0,105070.0,0.20586396]
[1734360251673,0.0942907,105080.0,105070.0,0.35586396]
[1734360251884,0.0942907,105080.0,105070.0,0.15]
[1734360252089,0.01526107,105080.0,105070.0,0.39703675]
[1734360252302,0.00029348,105100.0,105070.0,0.15]
[1734360252508,0.06539295,105090.0,105080.0,0.37036227]
[1734360252720,0.06539295,105090.0,105080.0,0.20575682]
[1734360252920,0.01539295,105090.0,105080.0,0.37034715]
[1734360253574,0.01539295,105090.0,105070.0,0.39703675]
[1734360254757,0.01039295,105090.0,105070.0,0.39703675]
[1734360256262,4e-05,105090.0,105080.0,0.39703675]
[1734360256505,4e-05,105090.0,105080.0,0.41561801]
[1734360256718,4e-05,105090.0,105080.0,0.39703675]
[1734360258636,4e-05,105090.0,105080.0,0.2469765]
[1734360258861,4e-05,105090.0,105080.0,0.3969765]
[1734360259064,4e-05,105090.0,105080.0,0.2469765]
[1734360259065,0.0943307,105090.0,105080.0,0.2469765]
[1734360259274,0.0943307,105090.0,105080.0,0.205835]
[1734360259492,0.0943307,105090.0,105080.0,0.3705349]
[1734360259710,0.1443307,105090.0,105080.0,0.3705349]
[1734360259931,0.0943307,105090.0,105080.0,0.16472847]
[1734360260159,0.05,105080.0,105070.0,0.37056347]
[1734360260364,0.1442907,105080.0,105070.0,0.37056347]
[1734360261436,0.1442907,105080.0,105070.0,0.205835]
[1734360261643,0.02728266,105070.0,105060.0,2.15132064]
[1734360261847,0.094417,105090.0,105070.0,0.0240312]
[1734360262058,0.0001263,105090.0,105080.0,0.36477237]
[1734360262262,0.0001263,105090.0,105070.0,0.36477237]
[1734360262469,0.0001263,105090.0,105080.0,0.39700024]
[1734360262679,0.0001263,105090.0,105080.0,0.39699207]
[1734360262888,0.0001263,105090.0,105080.0,0.15]
[1734360263297,0.0001263,105090.0,105080.0,0.39695467]
[1734360263505,0.0001263,105090.0,105080.0,0.15]
[1734360263758,0.0001263,105090.0,105080.0,0.39695259]
[1734360264193,0.094417,105090.0,105080.0,0.39695259]
[1734360265302,0.094417,105090.0,105080.0,0.15]
[1734360265529,0.094417,105090.0,105080.0,0.39695259]
[1734360266161,0.094417,105090.0,105080.0,0.15]
[1734360266576,0.094417,105090.0,105070.0,0.24695259]
[1734360266780,0.0501263,105090.0,105080.0,0.3703258]
[1734360267320,0.0001263,105090.0,105080.0,0.20572987]
[1734360267998,0.0001263,105090.0,105080.0,0.35572987]
[1734360268213,0.0001263,105090.0,105080.0,0.20572987]
[1734360269165,0.0001263,105090.0,105080.0,0.37030573]
[1734360269528,0.094417,105090.0,105080.0,0.16457586]
[1734360269739,0.094417,105090.0,105080.0,0.37030573]
[1734360270709,0.144417,105090.0,105080.0,0.37030573]
[1734360270909,0.144417,105090.0,105080.0,0.16457586]
[1734360271159,0.094417,105090.0,105080.0,0.37030573]
[1734360271920,0.094417,105090.0,105080.0,0.20572987]
[1734360272122,0.094417,105090.0,105080.0,0.3703397]
[1734360272332,0.144417,105090.0,105080.0,0.20572987]
[1734360272649,0.144417,105090.0,105080.0,0.37031579]
[1734360273516,0.144417,105090.0,105080.0,0.20572987]
[1734360273690,0.144417,105090.0,105080.0,0.37031531]
[1734360275669,0.0001263,105090.0,105080.0,0.37031531]
[1734360275787,0.0001263,105090.0,105080.0,0.39695259]
[1734360275983,0.0001263,105090.0,105080.0,0.3968825]
[1734360276427,0.0001263,105090.0,105080.0,0.51464094]
[1734360277043,0.0001263,105090.0,105080.0,0.15]
[1734360277257,0.144417,105090.0,105080.0,0.24690137]
[1734360277467,0.144417,105090.0,105080.0,0.24695154]
[1734360278933,0.144417,105090.0,105080.0,0.2058421]
[1734360279250,0.129417,105090.0,105080.0,0.37052884]
[1734360280053,0.00029348,105100.0,105080.0,0.37052884]
[1734360280252,0.05029348,105100.0,105090.0,0.37052884]
[1734360280468,0.14458418,105100.0,105090.0,0.2058421]
[1734360281243,0.09458418,105100.0,105090.0,0.2058421]
[1734360281450,0.14458418,105100.0,105090.0,0.20579348]
[1734360281650,0.09458418,105100.0,105090.0,0.20579348]
[1734360281830,0.09458418,105100.0,105080.0,0.24695154]
[1734360282054,0.00029348,105100.0,105080.0,0.45893009]
[1734360282263,0.00029348,105100.0,105090.0,0.37776969]
[1734360282472,0.00029348,105100.0,105090.0,0.16339564]
[1734360283074,0.00029348,105100.0,105090.0,0.36429941]
[1734360283221,0.00029348,105100.0,105090.0,0.51429941]
[1734360283447,0.00029348,105100.0,105090.0,0.60859011]
[1734360283607,8.62e-05,105130.0,105100.0,0.1]
[1734360283816,8.62e-05,105130.0,105110.0,0.1942907]
[1734360284263,8.62e-05,105130.0,105120.0,0.1]
[1734360284463,8.62e-05,105130.0,105120.0,0.4264869]
[1734360284720,8.62e-05,105130.0,105120.0,0.79062832]
[1734360284926,8.62e-05,105130.0,105120.0,0.69633762]
[1734360285170,8.62e-05,105130.0,105120.0,0.84633762]
[1734360285413,8.62e-05,105130.0,105120.0,0.3321962]
[1734360286057,8.62e-05,105130.0,105110.0,0.36414142]
[1734360286271,8.62e-05,105130.0,105110.0,0.69638902]
[1734360286688,8.62e-05,105130.0,105120.0,0.24644691]
[1734360287948,8.62e-05,105130.0,105120.0,0.34644691]
[1734360288159,8.62e-05,105130.0,105120.0,0.25]
[1734360289396,8.62e-05,105130.0,105120.0,0.61414142]
[1734360291243,0.00094231,105140.0,105120.0,0.61414142]
[1734360291503,0.00094231,105140.0,105130.0,0.24641618]
[1734360291684,0.00094231,105140.0,105130.0,0.57861228]
[1734360292341,0.00098231,105140.0,105130.0,0.57861228]
[1734360292728,0.00114965,105140.0,105130.0,0.57861228]
[1734360293228,0.09544035,105140.0,105130.0,0.36414142]
[1734360294108,0.00114965,105140.0,105130.0,0.3322207]
[1734360294967,0.00123595,105140.0,105130.0,0.3322207]
[1734360295825,0.9914776,105150.0,105130.0,0.3322207]
[1734360296028,1.0857683,105150.0,105140.0,0.24694386]
[1734360296238,1.0857683,105150.0,105140.0,0.24694418]
[1734360297278,1.0857683,105150.0,105140.0,0.23594418]
[1734360297937,0.9914776,105150.0,105140.0,0.56812628]
[1734360298371,0.9914776,105150.0,105140.0,0.84681062]
[1734360299615,0.9914776,105150.0,105140.0,0.4821821]
[1734360300028,0.9914776,105150.0,105140.0,0.83581062]
[1734360300236,0.9914776,105150.0,105140.0,0.3211821]
[1734360300458,1.0857683,105150.0,105130.0,0.36479586]
[1734360300992,0.9914776,105150.0,105130.0,0.79697636]
[1734360301193,0.9914776,105150.0,105140.0,0.36462852]
[1734360301398,0.9914776,105150.0,105140.0,0.51462852]
[1734360302307,0.9914776,105150.0,105140.0,0.15]
[1734360302574,0.9914776,105150.0,105140.0,0.51462852]
[1734360303057,0.9914776,105150.0,105140.0,0.15]
[1734360303820,0.9914776,105150.0,105140.0,0.24643193]
[1734360304023,1.0857683,105150.0,105140.0,0.24643193]
[1734360304224,1.0857683,105150.0,105130.0,0.24659927]
[1734360304422,0.9914776,105150.0,105130.0,0.57878417]
[1734360304830,0.9914776,105150.0,105140.0,0.24643193]
[1734360305655,0.9914776,105150.0,105140.0,0.24635104]
[1734360307085,0.9915639,105150.0,105140.0,0.24635104]
[1734360307538,1.0858546,105150.0,105140.0,0.24635104]
[1734360308262,1.0858546,105150.0,105140.0,0.24671803]
[1734360309572,0.05,105140.0,105130.0,0.00016734]
[1734360309721,0.1942907,105140.0,105130.0,0.00016734]
[1734360309920,0.1442907,105140.0,105130.0,0.20579418]
[1734360310124,0.1442907,105140.0,105130.0,0.37031244]
[1734360310361,0.1442907,105140.0,105130.0,0.37030534]
[1734360310567,0.1942907,105140.0,105130.0,0.37030534]
[1734360310765,0.1442907,105140.0,105130.0,0.20579418]
[1734360311011,0.1442907,105140.0,105130.0,0.37032547]
[1734360311347,0.0942907,105140.0,105130.0,0.20579418]
[1734360311560,0.0942907,105140.0,105130.0,0.37033772]
[1734360311561,0.19547965,105140.0,105130.0,0.37033772]
[1734360311998,0.19547965,105140.0,105130.0,0.35933772]
[1734360312821,0.14547965,105140.0,105130.0,0.35933772]
[1734360313673,0.09547965,105140.0,105130.0,0.35933772]
[1734360313893,0.11847965,105140.0,105130.0,0.16454354]
[1734360314337,0.11847965,105140.0,105120.0,0.17939021]
[1734360314538,0.02316725,105140.0,105130.0,0.16454354]
[1734360314746,0.37773177,105140.0,105130.0,0.16454354]
[1734360314956,0.023,105130.0,105120.0,0.16454354]
[1734360315168,0.1172907,105130.0,105120.0,0.16454354]
[1734360315369,0.0942907,105130.0,105120.0,0.16454354]
[1734360315593,0.0942907,105130.0,105120.0,0.24671803]
[1734360315802,0.1442907,105130.0,105120.0,0.24671803]
[1734360316408,0.1942907,105130.0,105120.0,0.24671803]
[1734360316613,0.19547975,105130.0,105120.0,0.24671803]
[1734360317321,0.19547975,105130.0,105110.0,0.3642946]
[1734360317539,0.0942907,105130.0,105120.0,0.3642946]
[1734360318160,0.09547975,105130.0,105120.0,0.3642946]
[1734360318372,0.19547975,105130.0,105120.0,0.24721544]
[1734360318582,0.05,105120.0,105110.0,0.24721544]
[1734360318794,0.14547989,105120.0,105110.0,0.24727538]
[1734360319261,0.09547989,105120.0,105110.0,0.24727538]
[1734360319457,0.0942907,105120.0,105100.0,0.01802067]
[1734360319663,0.0942907,105110.0,105100.0,0.01802067]
[1734360320053,0.0942907,105110.0,105100.0,0.0031726]
[1734360320896,0.1442907,105110.0,105100.0,0.25069458]
[1734360321097,0.19548004,105110.0,105100.0,0.25069458]
[1734360321328,0.14548004,105110.0,105100.0,0.25069458]
[1734360321538,0.14548004,105110.0,105100.0,0.0031726]
[1734360321901,0.1442907,105110.0,105100.0,0.0031726]
[1734360322509,0.1442907,105110.0,105100.0,0.25069458]
[1734360322685,0.0942907,105110.0,105100.0,0.25069458]
[1734360322893,0.0942907,105110.0,105100.0,0.01802325]
[1734360323322,0.0942907,105110.0,105100.0,0.38370277]
[1734360324298,0.14547997,105110.0,105100.0,0.38370277]
[1734360324497,0.14547997,105110.0,105100.0,0.01802325]
[1734360324725,0.0942907,105110.0,105100.0,0.01802325]
[1734360324942,0.0942907,105110.0,105100.0,0.265767]
[1734360324943,0.1442907,105110.0,105100.0,0.265767]
[1734360325361,0.19548005,105110.0,105100.0,0.2657389]
[1734360325586,0.09548005,105110.0,105100.0,0.2657389]
[1734360325791,0.1442907,105110.0,105100.0,0.2657389]
[1734360326816,0.2172307,105110.0,105100.0,0.01802325]
[1734360327018,0.2172307,105110.0,105100.0,0.22468048]
[1734360327222,0.2172307,105110.0,105100.0,0.39004372]
[1734360327813,0.1172907,105110.0,105100.0,0.39004372]
[1734360328353,0.1173307,105110.0,105100.0,0.22468048]
[1734360328681,0.1173307,105110.0,105100.0,0.2657389]
[1734360329753,0.1173307,105110.0,105100.0,0.22450377]
[1734360329951,0.1173307,105110.0,105100.0,0.37485297]
[1734360330153,0.1173307,105110.0,105100.0,0.20965312]
[1734360330359,0.26852019,105110.0,105100.0,0.37485258]
[1734360330559,0.2673307,105110.0,105100.0,0.37485258]
[1734360330763,0.3487307,105110.0,105100.0,0.37485258]
[1734360331602,0.1443307,105110.0,105100.0,0.37485258]
[1734360331968,0.0943307,105110.0,105100.0,0.36885212]
[1734360332172,0.0943307,105110.0,105100.0,0.0031726]
[1734360332419,0.0943307,105110.0,105100.0,0.36858129]
[1734360332634,0.1443307,105110.0,105100.0,0.36858129]
[1734360332847,0.0943307,105110.0,105100.0,0.36858129]
[1734360333053,0.09526793,105110.0,105100.0,0.36858129]
[1734360333262,0.09526793,105110.0,105100.0,0.26554423]
[1734360333472,0.09407859,105110.0,105100.0,0.26554423]
[1734360333682,0.14407859,105110.0,105100.0,0.26554423]
[1734360333893,0.09407859,105110.0,105100.0,0.01802413]
[1734360334097,4e-05,105110.0,105100.0,0.62851494]
[1734360334305,4e-05,105110.0,105100.0,0.35033013]
[1734360334723,0.0943307,105110.0,105100.0,0.62850709]
[1734360334937,0.0943307,105110.0,105100.0,0.29620109]
[1734360335143,4e-05,105110.0,105100.0,0.43364063]
[1734360335356,8.63e-05,105130.0,105120.0,0.0833]
[1734360335586,8.63e-05,105130.0,105120.0,0.69360265]
[1734360335767,8.63e-05,105130.0,105120.0,0.5155004]
[1734360336249,8.63e-05,105130.0,105120.0,0.4155004]
[1734360336669,0.98685745,105150.0,105120.0,0.69348385]
[1734360336876,1.08114815,105150.0,105140.0,0.36486105]
[1734360337086,1.08114815,105150.0,105140.0,0.69705105]
[1734360337290,1.08114815,105150.0,105130.0,0.27798345]
[1734360337514,1.08114815,105150.0,105140.0,0.3648371]
[1734360337725,1.08114815,105150.0,105130.0,0.69207415]
[1734360338349,1.07614815,105150.0,105130.0,0.69207415]
[1734360338560,1.07614815,105150.0,105140.0,0.36477621]
[1734360338772,0.98185745,105150.0,105140.0,0.0751]
[1734360338983,0.90375745,105150.0,105140.0,0.72611287]
[1734360339194,0.85375745,105150.0,105140.0,0.54242012]
[1734360339613,0.77565745,105150.0,105140.0,0.54242012]
[1734360339823,0.0010863,105160.0,105150.0,0.1]
[1734360340052,0.0001863,105190.0,105180.0,0.1]
[1734360340262,0.04613088,105200.0,105180.0,0.1]
[1734360340467,0.14042158,105200.0,105190.0,0.24630084]
[1734360340675,0.14042158,105200.0,105180.0,0.24630084]
[1734360341319,0.14097961,105200.0,105180.0,0.24630084]
[1734360341541,0.0942907,105190.0,105170.0,0.24630084]
[1734360342167,0.04668891,105200.0,105170.0,0.67835214]
[1734360342371,0.04668891,105200.0,105190.0,0.20522673]
[1734360342801,0.04668891,105200.0,105190.0,0.3320277]
[1734360343019,0.04668891,105200.0,105190.0,0.36111969]
[1734360343247,0.14097961,105200.0,105190.0,0.3320277]
[1734360343458,0.14097961,105200.0,105190.0,0.36895772]
[1734360343689,0.19097961,105200.0,105190.0,0.16398121]
[1734360343896,0.26806796,105200.0,105190.0,0.16398121]
[1734360344106,0.05,105190.0,105180.0,0.20497651]
[1734360344317,0.1442907,105190.0,105170.0,0.16398121]
[1734360344523,0.0942907,105180.0,105160.0,0.36895772]
[1734360344702,0.2658907,105170.0,105150.0,0.16398121]
[1734360344935,0.2658907,105170.0,105150.0,0.0148397]
[1734360345144,0.0759,105190.0,105150.0,0.17882091]
[1734360345351,0.0942907,105180.0,105160.0,0.16398121]
[1734360345556,0.0892907,105180.0,105160.0,0.36895772]
[1734360345766,0.0862907,105180.0,105170.0,0.16398121]
[1734360346012,0.04668891,105200.0,105170.0,0.36895772]
[1734360346224,0.0942907,105190.0,105180.0,0.16398121]
[1734360346417,0.0942907,105190.0,105180.0,0.36895772]
[1734360347374,0.0942907,105190.0,105180.0,0.16398121]
[1734360347881,0.0942907,105190.0,105170.0,0.16398121]
[1734360348092,0.0942907,105190.0,105170.0,0.16403615]
[1734360348093,0.0011884,105180.0,105170.0,0.16403615]
[1734360348295,0.0954791,105180.0,105160.0,0.38391922]
[1734360348494,0.0942907,105170.0,105160.0,0.38391922]
[1734360348697,0.0942907,105170.0,105160.0,0.21988307]
[1734360349036,0.04672891,105200.0,105160.0,0.55201147]
[1734360349225,0.0942907,105190.0,105170.0,0.36906515]
[1734360349822,0.0942907,105190.0,105180.0,0.36906515]
[1734360351172,0.0942907,105190.0,105180.0,0.16401997]
[1734360352483,0.04791743,105200.0,105180.0,0.16401997]
[1734360352861,0.14101961,105200.0,105190.0,0.36906515]
[1734360354337,0.04672891,105200.0,105190.0,0.54627633]
[1734360354498,0.04672891,105200.0,105190.0,0.59649052]
[1734360354726,0.04672891,105200.0,105190.0,0.57808022]
[1734360355996,0.04672891,105200.0,105190.0,0.90804144]
[1734360356195,0.04672891,105200.0,105190.0,1.88088714]
[1734360356407,0.04672891,105200.0,105190.0,1.69321614]
[1734360357063,0.04672891,105200.0,105190.0,1.421312]
[1734360357264,8.63e-05,105210.0,105200.0,0.3]
[1734360357469,0.02141593,105220.0,105200.0,0.64845152]
[1734360357667,0.02141593,105220.0,105210.0,0.2133487]
[1734360357866,0.02141593,105220.0,105210.0,0.55447115]
[1734360358260,0.02141593,105220.0,105210.0,0.81201259]
[1734360358508,0.02141593,105220.0,105210.0,0.81191083]
[1734360358704,0.02141593,105220.0,105210.0,0.71762225]
[1734360358910,0.02141593,105220.0,105210.0,0.55447115]
[1734360359125,0.02141593,105220.0,105210.0,0.55173747]
[1734360359332,0.02141593,105220.0,105210.0,0.80909464]
[1734360359796,0.02141593,105220.0,105210.0,0.71480394]
[1734360360006,0.02141593,105220.0,105210.0,0.80907865]
[1734360360209,0.02141593,105220.0,105210.0,0.64602817]
[1734360360614,0.02141593,105220.0,105210.0,0.79339271]
[1734360360841,0.02141593,105220.0,105210.0,0.426208]
[1734360361052,0.02141593,105220.0,105210.0,1.47454988]
[1734360361278,0.02141593,105220.0,105210.0,1.32174641]
[1734360361400,0.02141593,105220.0,105210.0,1.42819294]
[1734360361594,0.02141593,105220.0,105210.0,1.45119294]
[1734360361914,0.02141593,105220.0,105210.0,1.35662662]
[1734360362167,0.82515593,105230.0,105220.0,0.33387662]
[1734360362402,0.82515593,105230.0,105220.0,1.42319288]
[1734360362662,0.82515593,105230.0,105220.0,0.57630188]
[1734360362870,0.82515593,105230.0,105220.0,0.25]
[1734360363285,0.82515593,105230.0,105220.0,0.4442907]
[1734360363492,0.83140407,105230.0,105220.0,0.45737034]
[1734360363697,0.82515593,105230.0,105220.0,0.1]
[1734360363901,0.82958391,105230.0,105220.0,0.01307964]
[1734360364104,0.82958391,105230.0,105210.0,0.4219173]
[1734360364736,0.82958391,105230.0,105210.0,0.52845712]
[1734360364944,0.82958391,105230.0,105220.0,0.10737034]
[1734360365368,0.82958391,105230.0,105220.0,0.01307964]
[1734360366025,0.82958391,105230.0,105220.0,0.20737034]
[1734360366206,0.82958391,105230.0,105220.0,0.1942907]
[1734360366641,0.82958391,105230.0,105220.0,0.20737034]
[1734360367059,0.82958391,105230.0,105220.0,0.78244034]
[1734360367261,0.82958391,105230.0,105220.0,0.50534134]
[1734360367760,0.82958391,105230.0,105220.0,0.57637834]
[1734360367962,0.82958391,105230.0,105220.0,0.62637834]
[1734360368193,0.82958391,105230.0,105220.0,0.60053334]
[1734360368194,0.82524213,105230.0,105220.0,0.60053334]
[1734360368369,0.82524213,105230.0,105220.0,0.49737034]
[1734360368608,0.82524213,105230.0,105220.0,1.49637034]
[1734360369019,0.78918236,105230.0,105220.0,1.8091857]
[1734360369222,0.78376504,105230.0,105220.0,1.8091857]
[1734360369353,0.78376504,105230.0,105220.0,1.54637034]
[1734360369726,0.78376504,105230.0,105220.0,1.59637034]
[1734360370277,0.78376504,105230.0,105220.0,1.49637034]
[1734360371246,0.78376504,105230.0,105220.0,0.09]
[1734360371447,0.86566504,105230.0,105220.0,0.09]
[1734360371856,0.91396504,105230.0,105220.0,0.09]
[1734360372063,0.91396504,105230.0,105210.0,0.14975927]
[1734360372272,0.91396504,105230.0,105210.0,0.1]
[1734360372541,0.91396504,105230.0,105210.0,0.4319279]
[1734360372773,0.91396504,105230.0,105210.0,0.5262186]
[1734360372972,0.78376504,105230.0,105220.0,0.12616155]
[1734360373671,0.78376504,105230.0,105220.0,0.27616155]
[1734360374735,0.77388504,105230.0,105220.0,1.75153855]
[1734360374941,0.77388504,105230.0,105220.0,0.82114471]
[1734360375146,0.77388504,105230.0,105220.0,0.70847855]
[1734360375368,0.77388504,105230.0,105220.0,0.59498316]
[1734360375574,0.77388504,105230.0,105220.0,0.15]
[1734360375992,0.77388504,105230.0,105220.0,0.31362317]
[1734360376213,0.77388504,105230.0,105220.0,0.15095701]
[1734360376417,0.77388504,105230.0,105220.0,0.31458018]
[1734360376651,0.77388504,105230.0,105220.0,0.86220358]
[1734360376854,0.77388504,105230.0,105220.0,1.59820358]
[1734360377059,0.77388504,105230.0,105220.0,1.43553742]
[1734360377540,0.77388504,105230.0,105220.0,1.23220472]
[1734360378203,0.77388504,105230.0,105220.0,1.04430172]
[1734360378419,0.77388504,105230.0,105220.0,1.28830096]
[1734360378632,0.77388504,105230.0,105220.0,1.25947596]
[1734360379058,0.77388504,105230.0,105220.0,1.26036211]
[1734360379270,0.77388504,105230.0,105220.0,1.26053451]
[1734360379486,0.77388504,105230.0,105220.0,1.25862049]
[1734360380108,0.77388504,105230.0,105220.0,0.73934849]
[1734360380316,0.77388504,105230.0,105220.0,0.79149995]
[1734360380521,0.77388504,105230.0,105220.0,0.65816956]
[1734360381359,0.77388504,105230.0,105220.0,0.6560181]
[1734360381595,0.77388504,105230.0,105220.0,0.49661456]
[1734360381826,0.77388504,105230.0,105220.0,0.77674256]
[1734360382036,0.77388504,105230.0,105220.0,0.49661456]
[1734360382239,0.77388504,105230.0,105220.0,0.90605169]
[1734360382467,0.77388504,105230.0,105220.0,0.8567842]
[1734360382676,0.77388504,105230.0,105220.0,2.28431266]
[1734360382959,0.77388504,105230.0,105220.0,1.92199156]
[1734360383159,0.77388504,105230.0,105220.0,0.99282856]
[1734360383361,0.77388504,105230.0,105220.0,0.96064076]
[1734360383569,0.77388504,105230.0,105220.0,0.70304176]
[1734360383795,0.77388504,105230.0,105220.0,0.97909593]
[1734360383999,0.77388504,105230.0,105220.0,0.70304176]
[1734360384837,0.77101888,105230.0,105220.0,0.82909593]
[1734360385104,0.77101888,105230.0,105220.0,0.97909593]
[1734360385983,0.77105888,105230.0,105220.0,0.97909593]
[1734360386189,0.77109888,105230.0,105220.0,0.97909593]
[1734360386401,0.77113888,105230.0,105220.0,0.97909593]
[1734360386716,0.77117888,105230.0,105220.0,0.97909593]
[1734360386922,0.77121888,105230.0,105220.0,0.97909593]
[1734360387125,0.77121888,105230.0,105220.0,0.97809593]
[1734360387539,0.77121888,105230.0,105220.0,1.00109593]
[1734360387751,0.66457241,105230.0,105220.0,0.72504176]
[1734360387961,0.66457241,105230.0,105220.0,0.70204176]
[1734360388181,0.66457241,105230.0,105220.0,0.7000951]
[1734360388383,0.66457241,105230.0,105220.0,0.68533659]
[1734360388813,0.4960856,105230.0,105220.0,0.65139651]
[1734360389002,0.48351584,105230.0,105220.0,0.65139651]
[1734360389430,0.48351584,105230.0,105220.0,0.70139651]
[1734360389631,0.48351584,105230.0,105220.0,0.72439651]
[1734360390259,0.47143947,105230.0,105220.0,0.72439651]
[1734360390459,0.42537859,105230.0,105220.0,0.67439651]
[1734360390680,0.39075766,105230.0,105220.0,1.00045068]
[1734360390890,0.23337306,105230.0,105220.0,1.0006462]
[1734360391544,0.21098938,105230.0,105220.0,1.00345027]
[1734360391763,0.16674628,105230.0,105220.0,1.00345027]
[1734360392195,0.16293793,105230.0,105220.0,0.72720058]
[1734360392408,0.01034857,105230.0,105220.0,0.72720058]
[1734360392857,0.0010863,105340.0,105280.0,0.25]
[1734360393093,0.0010863,105340.0,105280.0,1.5079647]
[1734360393094,0.001,105320.0,105280.0,1.5079647]
[1734360393270,0.001,105320.0,105280.0,1.87045443]
[1734360393476,0.001,105320.0,105280.0,1.03857356]
[1734360393686,0.1475771,105310.0,105280.0,1.7372927]
[1734360393882,0.0157771,105310.0,105280.0,0.82727396]
[1734360394104,0.07835307,105300.0,105280.0,0.57727396]
[1734360394308,0.07835307,105300.0,105290.0,0.690173]
[1734360394515,0.07835307,105300.0,105290.0,0.53673693]
[1734360394741,0.07835307,105300.0,105290.0,0.63102763]
[1734360394944,0.00105307,105300.0,105290.0,0.63102763]
[1734360395349,0.00105307,105300.0,105290.0,0.4763197]
[1734360395759,0.00105307,105300.0,105290.0,0.4263197]
[1734360396617,0.00105307,105300.0,105290.0,0.3812127]
[1734360396843,0.00105307,105300.0,105290.0,0.5312127]
[1734360397653,0.00105307,105300.0,105290.0,0.6295544]
[1734360398284,0.00105307,105300.0,105290.0,0.6795544]
[1734360400239,0.01446202,105310.0,105290.0,0.6795544]
[1734360400415,0.01501923,105310.0,105300.0,1.3033237]
[1734360400619,0.01501923,105310.0,105300.0,1.88034296]